[Event "Kvibergspelen 2018"]
[Site "Prioritet Serneke Arena, Krutvagen 2, Gothenburg, Sweden"]
[Date "2018.04.20"]
[Round "1.1"]
[White "Hillarp Persson, Tiger"]
[Black "Berg, Roy"]
[Result "1-0"]
[TimeControl "15 minutes + 5 seconds per move from move one (Round 1 - 4) / 90 minutes + 30 seconds per move from move one (Round 5 - 8)"]
[WhiteTitle "GM"]
[WhiteFideId "1700812"]
[BlackFideId "1711458"]
[WhiteElo "2540"]
[BlackElo "1961"]

1. d4 {[%clk 00:15:06]} {[%emt 00:00:03]} d5 {[%clk 00:15:08]} {[%emt
00:00:02]} 2. c4 {[%clk 00:15:10]} {[%emt 00:00:02]} c6 {[%clk 00:15:12]}
{[%emt 00:00:02]} 3. Nf3 {[%clk 00:15:12]} {[%emt 00:00:02]} Nf6 {[%clk
00:15:15]} {[%emt 00:00:02]} 4. e3 {[%clk 00:15:14]} {[%emt 00:00:04]} a6
{[%clk 00:14:54]} {[%emt 00:00:27]} 5. Nbd2 {[%clk 00:15:16]} {[%emt 00:00:02]}
Bf5 {[%clk 00:14:54]} {[%emt 00:00:04]} 6. Nh4 {[%clk 00:14:59]} {[%emt
00:00:22]} Bg6 {[%clk 00:14:33]} {[%emt 00:00:26]} 7. Nxg6 {[%clk 00:13:54]}
{[%emt 00:01:09]} hxg6 {[%clk 00:14:35]} {[%emt 00:00:03]} 8. g3 {[%clk
00:13:57]} {[%emt 00:00:02]} e6 {[%clk 00:14:21]} {[%emt 00:00:20]} 9. Bg2
{[%clk 00:13:59]} {[%emt 00:00:02]} Nbd7 {[%clk 00:14:20]} {[%emt 00:00:06]} 10.
O-O {[%clk 00:13:57]} {[%emt 00:00:08]} Be7 {[%clk 00:13:58]} {[%emt 00:00:27]}
11. e4 {[%clk 00:12:30]} {[%emt 00:01:32]} dxe4 {[%clk 00:13:46]} {[%emt
00:00:17]} 12. Nxe4 {[%clk 00:12:31]} {[%emt 00:00:03]} Nxe4 {[%clk 00:13:35]}
{[%emt 00:00:16]} 13. Bxe4 {[%clk 00:12:33]} {[%emt 00:00:02]} Nf6 {[%clk
00:13:38]} {[%emt 00:00:03]} 14. Bg2 {[%clk 00:12:36]} {[%emt 00:00:02]} O-O
{[%clk 00:13:09]} {[%emt 00:00:35]} 15. Be3 {[%clk 00:11:42]} {[%emt 00:00:58]}
Qc7 {[%clk 00:12:11]} {[%emt 00:01:02]} 16. Qe2 {[%clk 00:09:38]} {[%emt
00:02:10]} Rad8 {[%clk 00:12:07]} {[%emt 00:00:07]} 17. Rfd1 {[%clk 00:08:50]}
{[%emt 00:00:55]} Rd7 {[%clk 00:11:53]} {[%emt 00:00:19]} 18. Rab1 {[%clk
00:07:06]} {[%emt 00:01:49]} a5 {[%clk 00:11:46]} {[%emt 00:00:12]} 19. h4
{[%clk 00:06:31]} {[%emt 00:00:39]} Rdd8 {[%clk 00:10:33]} {[%emt 00:01:18]} 20.
Rbc1 {[%clk 00:06:27]} {[%emt 00:00:09]} Rfe8 {[%clk 00:06:28]} {[%emt
00:04:10]} 21. a3 {[%clk 00:06:12]} {[%emt 00:00:20]} Bd6 {[%clk 00:05:52]}
{[%emt 00:00:41]} 22. Qf3 {[%clk 00:04:34]} {[%emt 00:01:42]} e5 {[%clk
00:05:32]} {[%emt 00:00:26]} 23. c5 {[%clk 00:03:55]} {[%emt 00:00:44]} Bf8
{[%clk 00:05:19]} {[%emt 00:00:18]} 24. dxe5 {[%clk 00:03:51]} {[%emt
00:00:09]} Rxd1+ {[%clk 00:04:54]} {[%emt 00:00:31]} 25. Rxd1 {[%clk 00:03:33]}
{[%emt 00:00:22]} Qxe5 {[%clk 00:04:56]} {[%emt 00:00:03]} 26. b4 {[%clk
00:03:20]} {[%emt 00:00:18]} axb4 {[%clk 00:04:51]} {[%emt 00:00:11]} 27. axb4
{[%clk 00:03:24]} {[%emt 00:00:01]} Nd5 {[%clk 00:04:55]} {[%emt 00:00:01]} 28.
Rxd5 {[%clk 00:03:20]} {[%emt 00:00:09]} cxd5 {[%clk 00:04:45]} {[%emt
00:00:14]} 29. Qxd5 {[%clk 00:03:23]} {[%emt 00:00:02]} Qxd5 {[%clk 00:02:07]}
{[%emt 00:02:43]} 30. Bxd5 {[%clk 00:03:27]} {[%emt 00:00:01]} Re7 {[%clk
00:02:09]} {[%emt 00:00:03]} 31. Kf1 {[%clk 00:03:30]} {[%emt 00:00:01]} Rd7
{[%clk 00:02:13]} {[%emt 00:00:02]} 32. Bf3 {[%clk 00:03:33]} {[%emt 00:00:02]}
Be7 {[%clk 00:01:56]} {[%emt 00:00:21]} 33. Ke2 {[%clk 00:03:29]} {[%emt
00:00:09]} Kf8 {[%clk 00:02:00]} {[%emt 00:00:02]} 34. b5 {[%clk 00:03:27]}
{[%emt 00:00:07]} Rc7 {[%clk 00:01:24]} {[%emt 00:00:41]} 35. c6 {[%clk
00:03:03]} {[%emt 00:00:28]} bxc6 {[%clk 00:01:23]} {[%emt 00:00:07]} 36. Bxc6
{[%clk 00:03:06]} {[%emt 00:00:02]} Bd6 {[%clk 00:01:20]} {[%emt 00:00:08]} 37.
Kd3 {[%clk 00:03:09]} {[%emt 00:00:02]} Ke7 {[%clk 00:01:24]} {[%emt 00:00:01]}
38. Kc4 {[%clk 00:03:12]} {[%emt 00:00:01]} Be5 {[%clk 00:01:19]} {[%emt
00:00:10]} 39. Kd5 {[%clk 00:03:14]} {[%emt 00:00:03]} f6 {[%clk 00:00:51]}
{[%emt 00:00:33]} 40. Bc5+ {[%clk 00:03:11]} {[%emt 00:00:08]} Kf7 {[%clk
00:00:44]} {[%emt 00:00:13]} 41. Bd6 {[%clk 00:02:14]} {[%emt 00:01:01]} Rc8
{[%clk 00:00:31]} {[%emt 00:00:17]} 42. Bxe5 {[%clk 00:02:12]} {[%emt
00:00:07]} fxe5 {[%clk 00:00:35]} {[%emt 00:00:02]} 43. Kd6 {[%clk 00:02:12]}
{[%emt 00:00:05]} Rd8+ {[%clk 00:00:21]} {[%emt 00:00:18]} 44. Kc7 {[%clk
00:02:10]} {[%emt 00:00:07]} Rd2 {[%clk 00:00:25]} {[%emt 00:00:01]} 45. f3
{[%clk 00:02:12]} {[%emt 00:00:02]} Ke7 {[%clk 00:00:25]} {[%emt 00:00:05]} 46.
b6 {[%clk 00:02:15]} {[%emt 00:00:02]} 1-0

[Event "Kvibergspelen 2018"]
[Site "Prioritet Serneke Arena, Krutvagen 2, Gothenburg, Sweden"]
[Date "2018.04.20"]
[Round "1.2"]
[White "Bermann, Martin"]
[Black "Hector, Jonny"]
[Result "0-1"]
[TimeControl "15 minutes + 5 seconds per move from move one (Round 1 - 4) / 90 minutes + 30 seconds per move from move one (Round 5 - 8)"]
[BlackTitle "GM"]
[WhiteFideId "1731980"]
[BlackFideId "1700090"]
[WhiteElo "1955"]
[BlackElo "2502"]

1. e4 {[%clk 00:15:08]} e5 {[%clk 00:15:05]} {[%emt 00:00:05]} 2. Nf3 {[%clk
00:15:11]} {[%emt 00:00:02]} Nc6 {[%clk 00:15:08]} {[%emt 00:00:03]} 3. d4
{[%clk 00:15:14]} {[%emt 00:00:02]} exd4 {[%clk 00:15:03]} {[%emt 00:00:09]} 4.
Nxd4 {[%clk 00:15:17]} {[%emt 00:00:03]} Qf6 {[%clk 00:14:57]} {[%emt
00:00:11]} 5. Nb5 {[%clk 00:15:08]} {[%emt 00:00:15]} Bc5 {[%clk 00:14:49]}
{[%emt 00:00:12]} 6. Qd2 {[%clk 00:14:52]} {[%emt 00:00:21]} Bb6 {[%clk
00:14:37]} {[%emt 00:00:17]} 7. N1c3 {[%clk 00:14:40]} {[%emt 00:00:18]} Nge7
{[%clk 00:14:34]} {[%emt 00:00:07]} 8. Qf4 {[%clk 00:14:06]} {[%emt 00:00:40]}
Qxf4 {[%clk 00:14:15]} {[%emt 00:00:23]} 9. Bxf4 {[%clk 00:14:09]} {[%emt
00:00:02]} d6 {[%clk 00:14:14]} {[%emt 00:00:05]} 10. Bd3 {[%clk 00:13:25]}
{[%emt 00:00:50]} a6 {[%clk 00:14:08]} {[%emt 00:00:12]} 11. Na3 {[%clk
00:13:27]} {[%emt 00:00:03]} Nb4 {[%clk 00:13:55]} {[%emt 00:00:18]} 12. Be2
{[%clk 00:13:09]} {[%emt 00:00:23]} Ng6 {[%clk 00:13:50]} {[%emt 00:00:09]} 13.
Bg3 {[%clk 00:12:19]} {[%emt 00:00:56]} Bd4 {[%clk 00:13:42]} {[%emt 00:00:13]}
14. Nd1 {[%clk 00:11:35]} {[%emt 00:00:50]} Nc6 {[%clk 00:13:34]} {[%emt
00:00:13]} 15. c3 {[%clk 00:11:31]} {[%emt 00:00:09]} Be5 {[%clk 00:13:33]}
{[%emt 00:00:06]} 16. Bxe5 {[%clk 00:11:26]} {[%emt 00:00:11]} dxe5 {[%clk
00:13:33]} {[%emt 00:00:04]} 17. O-O {[%clk 00:10:58]} {[%emt 00:00:34]} Nf4
{[%clk 00:13:32]} {[%emt 00:00:05]} 18. Bf3 {[%clk 00:10:47]} {[%emt 00:00:17]}
Be6 {[%clk 00:13:27]} {[%emt 00:00:10]} 19. Ne3 {[%clk 00:10:28]} {[%emt
00:00:24]} O-O-O {[%clk 00:13:22]} {[%emt 00:00:10]} 20. Rfd1 {[%clk 00:08:45]}
{[%emt 00:01:48]} Rxd1+ {[%clk 00:12:36]} {[%emt 00:00:51]} 21. Bxd1 {[%clk
00:07:34]} {[%emt 00:01:16]} Rd8 {[%clk 00:12:38]} {[%emt 00:00:03]} 22. Bf3
{[%clk 00:07:17]} {[%emt 00:00:23]} b5 {[%clk 00:12:05]} {[%emt 00:00:37]} 23.
b3 {[%clk 00:06:02]} {[%emt 00:01:21]} Rd2 {[%clk 00:11:30]} {[%emt 00:00:39]}
24. Nac2 {[%clk 00:05:31]} {[%emt 00:00:37]} Nd3 {[%clk 00:11:06]} {[%emt
00:00:28]} 25. Rd1 {[%clk 00:05:11]} {[%emt 00:00:26]} Rxd1+ {[%clk 00:11:04]}
{[%emt 00:00:08]} 26. Nxd1 {[%clk 00:05:16]} Nc1 {[%clk 00:11:06]} {[%emt
00:00:04]} 27. Nce3 {[%clk 00:04:22]} {[%emt 00:00:59]} Nxa2 {[%clk 00:11:04]}
{[%emt 00:00:07]} 28. Nd5 {[%clk 00:03:49]} {[%emt 00:00:36]} b4 {[%clk
00:10:58]} {[%emt 00:00:12]} 29. Be2 {[%clk 00:02:44]} {[%emt 00:01:11]} Kb7
{[%clk 00:10:50]} {[%emt 00:00:13]} 30. Bc4 {[%clk 00:02:11]} {[%emt 00:00:38]}
bxc3 {[%clk 00:10:46]} {[%emt 00:00:09]} 31. N1xc3 {[%clk 00:01:43]} {[%emt
00:00:34]} Nxc3 {[%clk 00:10:46]} {[%emt 00:00:04]} 32. Nxc3 {[%clk 00:01:46]}
{[%emt 00:00:02]} Bxc4 {[%clk 00:10:48]} {[%emt 00:00:03]} 33. bxc4 {[%clk
00:01:51]} Na5 {[%clk 00:10:48]} {[%emt 00:00:05]} 34. c5 {[%clk 00:01:38]}
{[%emt 00:00:18]} Kc6 {[%clk 00:10:45]} {[%emt 00:00:08]} 35. Nd5 {[%clk
00:01:35]} {[%emt 00:00:09]} Nb3 {[%clk 00:10:41]} {[%emt 00:00:08]} 0-1

[Event "Kvibergspelen 2018"]
[Site "Prioritet Serneke Arena, Krutvagen 2, Gothenburg, Sweden"]
[Date "2018.04.20"]
[Round "1.3"]
[White "Blomqvist, Erik"]
[Black "Berntsson, Jonas"]
[Result "1-0"]
[TimeControl "15 minutes + 5 seconds per move from move one (Round 1 - 4) / 90 minutes + 30 seconds per move from move one (Round 5 - 8)"]
[WhiteTitle "GM"]
[WhiteFideId "1709437"]
[BlackFideId "1729470"]
[WhiteElo "2494"]
[BlackElo "1922"]

1. e4 {[%clk 00:15:07]} {[%emt 00:00:01]} e5 {[%clk 00:15:02]} {[%emt
00:00:09]} 2. Nf3 {[%clk 00:15:10]} {[%emt 00:00:02]} Nc6 {[%clk 00:15:06]}
{[%emt 00:00:02]} 3. Bb5 {[%clk 00:15:14]} {[%emt 00:00:02]} Nf6 {[%clk
00:15:07]} {[%emt 00:00:03]} 4. d3 {[%clk 00:15:02]} {[%emt 00:00:17]} Bc5
{[%clk 00:15:04]} {[%emt 00:00:09]} 5. Bxc6 {[%clk 00:14:58]} {[%emt 00:00:09]}
dxc6 {[%clk 00:14:55]} {[%emt 00:00:14]} 6. Bg5 {[%clk 00:15:01]} {[%emt
00:00:02]} h6 {[%clk 00:12:56]} {[%emt 00:02:05]} 7. Bh4 {[%clk 00:15:04]} Qe7
{[%clk 00:12:25]} {[%emt 00:00:37]} 8. Nbd2 {[%clk 00:15:05]} {[%emt 00:00:04]}
Bg4 {[%clk 00:11:00]} {[%emt 00:01:31]} 9. h3 {[%clk 00:15:05]} {[%emt
00:00:05]} Bh5 {[%clk 00:11:02]} {[%emt 00:00:04]} 10. g4 {[%clk 00:13:24]}
{[%emt 00:01:45]} Bg6 {[%clk 00:10:07]} {[%emt 00:00:59]} 11. Nc4 {[%clk
00:13:27]} {[%emt 00:00:02]} Bd6 {[%clk 00:09:55]} {[%emt 00:00:18]} 12. Bg3
{[%clk 00:12:58]} {[%emt 00:00:33]} O-O-O {[%clk 00:07:56]} {[%emt 00:02:04]}
13. Qe2 {[%clk 00:13:01]} {[%emt 00:00:02]} Nd7 {[%clk 00:07:50]} {[%emt
00:00:12]} 14. Nh4 {[%clk 00:12:58]} {[%emt 00:00:07]} Bh7 {[%clk 00:07:08]}
{[%emt 00:00:48]} 15. Nf5 {[%clk 00:12:51]} {[%emt 00:00:12]} Bxf5 {[%clk
00:07:05]} {[%emt 00:00:08]} 16. gxf5 {[%clk 00:12:54]} {[%emt 00:00:01]} g5
{[%clk 00:06:16]} {[%emt 00:00:55]} 17. h4 {[%clk 00:12:45]} {[%emt 00:00:14]}
f6 {[%clk 00:06:13]} {[%emt 00:00:08]} 18. O-O-O {[%clk 00:12:43]} {[%emt
00:00:06]} Bc5 {[%clk 00:05:56]} {[%emt 00:00:22]} 19. Rh2 {[%clk 00:12:24]}
{[%emt 00:00:24]} Nb6 {[%clk 00:05:58]} {[%emt 00:00:03]} 20. Nd2 {[%clk
00:11:39]} {[%emt 00:00:50]} Rh7 {[%clk 00:05:50]} {[%emt 00:00:13]} 21. Rdh1
{[%clk 00:11:28]} {[%emt 00:00:15]} Rdh8 {[%clk 00:05:54]} {[%emt 00:00:01]} 22.
Qh5 {[%clk 00:09:57]} {[%emt 00:01:36]} Qe8 {[%clk 00:04:26]} {[%emt 00:01:33]}
23. Qxe8+ {[%clk 00:09:57]} {[%emt 00:00:05]} Rxe8 {[%clk 00:04:31]} 24. hxg5
{[%clk 00:09:59]} {[%emt 00:00:03]} fxg5 {[%clk 00:04:32]} {[%emt 00:00:03]} 25.
Rxh6 {[%clk 00:10:01]} {[%emt 00:00:03]} 1-0

[Event "Kvibergspelen 2018"]
[Site "Prioritet Serneke Arena, Krutvagen 2, Gothenburg, Sweden"]
[Date "2018.04.20"]
[Round "1.4"]
[White "Andersson, Kjell-Ake"]
[Black "Tikkanen, Hans"]
[Result "0-1"]
[TimeControl "15 minutes + 5 seconds per move from move one (Round 1 - 4) / 90 minutes + 30 seconds per move from move one (Round 5 - 8)"]
[BlackTitle "GM"]
[WhiteFideId "1713825"]
[BlackFideId "1706446"]
[WhiteElo "1921"]
[BlackElo "2486"]

1. Nf3 {[%clk 00:14:57]} {[%emt 00:00:10]} d5 {[%clk 00:15:07]} {[%emt
00:00:05]} 2. d4 {[%clk 00:14:28]} {[%emt 00:00:33]} Nf6 {[%clk 00:15:10]}
{[%emt 00:00:03]} 3. c4 {[%clk 00:14:10]} {[%emt 00:00:23]} c6 {[%clk
00:15:13]} {[%emt 00:00:02]} 4. cxd5 {[%clk 00:13:43]} {[%emt 00:00:31]} cxd5
{[%clk 00:15:16]} {[%emt 00:00:02]} 5. Nc3 {[%clk 00:13:45]} {[%emt 00:00:03]}
e6 {[%clk 00:13:52]} {[%emt 00:01:30]} 6. Bf4 {[%clk 00:13:32]} {[%emt
00:00:17]} Qb6 {[%clk 00:13:50]} {[%emt 00:00:08]} 7. Qc2 {[%clk 00:12:19]}
{[%emt 00:01:17]} Nc6 {[%clk 00:13:22]} {[%emt 00:00:34]} 8. e3 {[%clk
00:11:51]} {[%emt 00:00:32]} Bd7 {[%clk 00:10:37]} {[%emt 00:02:51]} 9. Be2
{[%clk 00:09:51]} {[%emt 00:02:05]} Rc8 {[%clk 00:10:40]} {[%emt 00:00:03]} 10.
O-O {[%clk 00:08:52]} {[%emt 00:01:03]} Be7 {[%clk 00:09:17]} {[%emt 00:01:29]}
11. Rab1 {[%clk 00:07:42]} {[%emt 00:01:13]} O-O {[%clk 00:09:04]} {[%emt
00:00:19]} 12. Rfc1 {[%clk 00:06:34]} {[%emt 00:01:13]} Nh5 {[%clk 00:04:32]}
{[%emt 00:04:37]} 13. Ng5 {[%clk 00:06:08]} {[%emt 00:00:30]} Nf6 {[%clk
00:04:36]} {[%emt 00:00:02]} 14. Be5 {[%clk 00:05:07]} {[%emt 00:01:07]} g6
{[%clk 00:04:33]} {[%emt 00:00:08]} 15. Bg3 {[%clk 00:04:36]} {[%emt 00:00:36]}
Na5 {[%clk 00:04:08]} {[%emt 00:00:30]} 16. Nf3 {[%clk 00:03:23]} {[%emt
00:01:17]} Nc4 {[%clk 00:03:48]} {[%emt 00:00:26]} 17. Bxc4 {[%clk 00:03:04]}
{[%emt 00:00:24]} dxc4 {[%clk 00:02:37]} {[%emt 00:01:16]} 18. Ne5 {[%clk
00:02:31]} {[%emt 00:00:38]} Be8 {[%clk 00:02:22]} {[%emt 00:00:19]} 19. h3
{[%clk 00:02:02]} {[%emt 00:00:34]} Nd5 {[%clk 00:01:43]} {[%emt 00:00:44]} 20.
Nxd5 {[%clk 00:01:33]} {[%emt 00:00:35]} exd5 {[%clk 00:01:47]} {[%emt
00:00:01]} 21. Qe2 {[%clk 00:01:17]} {[%emt 00:00:21]} f6 {[%clk 00:01:40]}
{[%emt 00:00:12]} 22. Nf3 {[%clk 00:01:08]} {[%emt 00:00:13]} Bd7 {[%clk
00:01:43]} {[%emt 00:00:02]} 23. Rd1 {[%clk 00:00:42]} {[%emt 00:00:31]} Bf5
{[%clk 00:01:40]} {[%emt 00:00:09]} 24. Rbc1 {[%clk 00:00:45]} {[%emt
00:00:02]} Bd3 {[%clk 00:01:36]} {[%emt 00:00:08]} 25. Qd2 {[%clk 00:00:10]}
{[%emt 00:00:40]} Bb4 {[%clk 00:01:38]} {[%emt 00:00:03]} 26. Rc3 {[%clk
00:00:15]} Qa5 {[%clk 00:01:20]} {[%emt 00:00:23]} 27. a3 {[%clk 00:00:11]}
{[%emt 00:00:09]} Bxc3 {[%clk 00:01:24]} {[%emt 00:00:02]} 28. Qxc3 {[%clk
00:00:12]} {[%emt 00:00:03]} Qxc3 {[%clk 00:01:27]} {[%emt 00:00:02]} 29. bxc3
{[%clk 00:00:17]} Rc6 {[%clk 00:01:27]} {[%emt 00:00:05]} 30. Ne1 {[%clk
00:00:07]} {[%emt 00:00:15]} Bf5 {[%clk 00:01:30]} {[%emt 00:00:02]} 0-1

[Event "Kvibergspelen 2018"]
[Site "Prioritet Serneke Arena, Krutvagen 2, Gothenburg, Sweden"]
[Date "2018.04.20"]
[Round "1.5"]
[White "Brynell, Stellan"]
[Black "Gonzalez, Emilio"]
[Result "1-0"]
[TimeControl "15 minutes + 5 seconds per move from move one (Round 1 - 4) / 90 minutes + 30 seconds per move from move one (Round 5 - 8)"]
[WhiteTitle "GM"]
[WhiteFideId "1700219"]
[BlackFideId "1721062"]
[WhiteElo "2420"]
[BlackElo "1921"]

1. d4 {[%clk 00:15:05]} {[%emt 00:00:04]} Nf6 {[%clk 00:15:08]} {[%emt
00:00:03]} 2. Nf3 {[%clk 00:15:07]} {[%emt 00:00:03]} e6 {[%clk 00:14:49]}
{[%emt 00:00:25]} 3. c4 {[%clk 00:15:08]} {[%emt 00:00:04]} b6 {[%clk
00:14:45]} {[%emt 00:00:09]} 4. g3 {[%clk 00:15:09]} {[%emt 00:00:03]} Bb7
{[%clk 00:14:48]} {[%emt 00:00:03]} 5. Bg2 {[%clk 00:15:12]} {[%emt 00:00:02]}
Bb4+ {[%clk 00:14:11]} {[%emt 00:00:43]} 6. Bd2 {[%clk 00:15:10]} {[%emt
00:00:06]} Be7 {[%clk 00:14:08]} {[%emt 00:00:08]} 7. O-O {[%clk 00:15:07]}
{[%emt 00:00:08]} O-O {[%clk 00:14:12]} {[%emt 00:00:02]} 8. Nc3 {[%clk
00:15:09]} {[%emt 00:00:02]} d6 {[%clk 00:14:00]} {[%emt 00:00:18]} 9. Qc2
{[%clk 00:15:03]} {[%emt 00:00:11]} Nbd7 {[%clk 00:14:00]} {[%emt 00:00:05]} 10.
e4 {[%clk 00:14:52]} {[%emt 00:00:15]} e5 {[%clk 00:13:18]} {[%emt 00:00:47]}
11. d5 {[%clk 00:14:42]} {[%emt 00:00:14]} a5 {[%clk 00:12:12]} {[%emt
00:01:12]} 12. b3 {[%clk 00:13:26]} {[%emt 00:01:21]} Nc5 {[%clk 00:12:05]}
{[%emt 00:00:13]} 13. Bh3 {[%clk 00:13:07]} {[%emt 00:00:23]} h6 {[%clk
00:10:46]} {[%emt 00:01:24]} 14. Nh4 {[%clk 00:12:42]} {[%emt 00:00:30]} Nfd7
{[%clk 00:09:19]} {[%emt 00:01:33]} 15. Nf5 {[%clk 00:12:41]} {[%emt 00:00:06]}
Na6 {[%clk 00:08:30]} {[%emt 00:00:55]} 16. a3 {[%clk 00:12:09]} {[%emt
00:00:36]} Ndc5 {[%clk 00:08:31]} {[%emt 00:00:05]} 17. Rab1 {[%clk 00:11:43]}
{[%emt 00:00:31]} Bc8 {[%clk 00:07:41]} {[%emt 00:00:54]} 18. b4 {[%clk
00:11:23]} {[%emt 00:00:25]} axb4 {[%clk 00:07:44]} {[%emt 00:00:03]} 19. axb4
{[%clk 00:11:26]} {[%emt 00:00:01]} Nd7 {[%clk 00:07:19]} {[%emt 00:00:30]} 20.
Nb5 {[%clk 00:11:15]} {[%emt 00:00:16]} Nf6 {[%clk 00:07:12]} {[%emt 00:00:12]}
21. Ra1 {[%clk 00:10:33]} {[%emt 00:00:47]} Bb7 {[%clk 00:07:06]} {[%emt
00:00:11]} 22. Rfd1 {[%clk 00:09:01]} {[%emt 00:01:35]} c6 {[%clk 00:06:37]}
{[%emt 00:00:36]} 23. dxc6 {[%clk 00:08:35]} {[%emt 00:00:31]} Bxc6 {[%clk
00:06:39]} {[%emt 00:00:03]} 24. f3 {[%clk 00:08:24]} {[%emt 00:00:15]} d5
{[%clk 00:06:27]} {[%emt 00:00:18]} 25. exd5 {[%clk 00:07:43]} {[%emt
00:00:45]} Bxb5 {[%clk 00:05:43]} {[%emt 00:00:49]} 26. cxb5 {[%clk 00:07:42]}
{[%emt 00:00:05]} Nxb4 {[%clk 00:05:45]} {[%emt 00:00:03]} 27. Bxb4 {[%clk
00:05:48]} {[%emt 00:01:59]} Bxb4 {[%clk 00:05:27]} {[%emt 00:00:24]} 28. d6
{[%clk 00:05:45]} {[%emt 00:00:08]} Nd5 {[%clk 00:04:30]} {[%emt 00:01:02]} 29.
Rxa8 {[%clk 00:05:01]} {[%emt 00:00:49]} Qxa8 {[%clk 00:04:33]} {[%emt
00:00:01]} 30. Rxd5 {[%clk 00:04:49]} {[%emt 00:00:17]} Kh8 {[%clk 00:03:21]}
{[%emt 00:01:17]} 31. Qd1 {[%clk 00:03:43]} {[%emt 00:01:11]} Rd8 {[%clk
00:02:04]} {[%emt 00:01:23]} 32. d7 {[%clk 00:03:35]} {[%emt 00:00:14]} Qa3
{[%clk 00:01:59]} {[%emt 00:00:09]} 33. Rxe5 {[%clk 00:02:50]} {[%emt
00:00:49]} Bc5+ {[%clk 00:01:53]} {[%emt 00:00:12]} 34. Rxc5 {[%clk 00:01:53]}
{[%emt 00:01:03]} Qxc5+ {[%clk 00:01:56]} {[%emt 00:00:01]} 35. Qd4 {[%clk
00:01:13]} {[%emt 00:00:44]} Qc1+ {[%clk 00:01:46]} {[%emt 00:00:16]} 36. Bf1
{[%clk 00:01:10]} {[%emt 00:00:07]} Qb1 {[%clk 00:00:39]} {[%emt 00:01:12]} 37.
Qxg7 {[%clk 00:01:12]} {[%emt 00:00:03]} 1-0